fUSD/lending_fUSD_20260126
["ID","MTS","AMOUNT","RATE_DAILY","PERIOD"]
[403674199,1769464244633,-867.98,0.00017893,2]
[403674200,1769464244642,-10000.0,0.000179,2]
[403674201,1769464244651,-378.02376998,0.000179,2]
[403674202,1769464244661,-4010.53897965,0.000179,2]
[403674203,1769464244670,-500.0,0.000179,6]
[403674204,1769464244679,-150.0,0.00017973,2]
[403674205,1769464244688,-500.0,0.00017982,2]
[403674206,1769464244697,-855.53695193,0.0001799,2]
[403674207,1769464244707,-855.53695193,0.0001799,2]
[403674208,1769464244716,-413.2620847,0.00017997,2]
[403674209,1769464244724,-3452.2615215,0.00017997,2]
[403674210,1769464244733,-151.0,0.00017997,2]
[403674211,1769464244742,-5122.8150704,0.00017998,2]
[403674212,1769464244751,-863.0653803,0.00017998,2]
[403674213,1769464244760,-500.0,0.00017999,2]
[403674214,1769464244770,-500.0,0.00017999,2]
[403674215,1769464244779,-500.0,0.00017999,2]
[403674216,1769464244789,-500.0,0.00017999,2]
[403674217,1769464244798,-500.0,0.00017999,2]
[403674218,1769464244807,-500.0,0.00017999,2]
[403674219,1769464244817,-500.0,0.00017999,2]
[403674220,1769464244826,-500.0,0.00017999,2]
[403674221,1769464244835,-500.0,0.00017999,2]
[403674222,1769464244849,-500.0,0.00017999,2]
[403674223,1769464244858,-500.0,0.00017999,2]
[403674224,1769464244867,-369.4752437,0.00017999,2]
[403674225,1769464244876,-457.1035126,0.00017999,2]
[403674226,1769464244886,-500.0,0.00017999,2]
[403674227,1769464244895,-500.0,0.00017999,2]
[403674228,1769464244904,-274.63997222,0.00017999,2]
[403674229,1769464244915,-500.0,0.00017999,2]
[403674230,1769464244924,-500.0,0.00017999,2]
[403674231,1769464245097,-300.0,0.00017999,2]
[403674232,1769464245106,-300.0,0.00017999,2]
[403674233,1769464245116,-300.0,0.00017999,2]
[403674234,1769464245125,-666.0,0.00017999,2]
[403674235,1769464245134,-300.0,0.00017999,2]
[403674236,1769464245144,-500.0,0.00017999,2]
[403674237,1769464245153,-466.6,0.00017999,2]
[403674238,1769464245162,-150.0,0.00017999,2]
[403674239,1769464245171,-150.0,0.00017999,2]
[403674240,1769464245180,-3936711.44592258,0.00018,2]
[403674241,1769464245189,-59192.29570612,0.00018,2]
[403674242,1769464245198,-1276093.12850084,0.00018,2]
[403674256,1769464246887,-1.7e-07,0.00018,2]
[403674257,1769464246937,-293.91110156,0.00018,2]
[403674258,1769464247336,-1036.94153083,0.00018,2]
[403674259,1769464248038,-500.0,0.00015827,2]
[403674260,1769464248063,-32806.7796059,0.00015827,2]
[403674261,1769464248077,-1868873.83539396,0.00018,2]
[403674262,1769464248094,-547.27498354,0.00018,2]
[403674264,1769464298203,210.131,0.00015502,2]
[403674265,1769464298234,2235.473,0.00015502,2]
[403674266,1769464314668,246.69949239,0.00015728,2]
[403674267,1769464336984,2780.3815,0.00015728,2]
[403674268,1769464337952,151.0,0.00015816,2]
[403674269,1769464357035,387.033144,0.00015818,2]
[403674270,1769464357628,532.07543976,0.00015818,2]
[403674271,1769464362329,185.6874488,0.00015818,2]
[403674272,1769464362619,500.0,0.00015818,2]
[403674273,1769464362672,434.13802857,0.00015818,2]
[403674274,1769464362695,65.86197143,0.00015818,2]
[403674275,1769464362736,540.93616453,0.00015818,2]
[403674276,1769464374124,152.32039195,0.00015818,2]
[403674277,1769464374177,500.0,0.00015818,2]
[403674278,1769464374220,500.0,0.00015818,2]
[403674279,1769464374273,500.0,0.00015818,2]
[403674280,1769464374326,500.0,0.00015818,2]
[403674281,1769464374374,500.0,0.00015818,2]
[403674282,1769464374431,500.0,0.00015818,2]
[403674283,1769464374480,500.0,0.00015818,2]
[403674284,1769464374532,500.0,0.00015818,2]
[403674285,1769464374581,419.01459087,0.00015818,2]
[403674286,1769464374630,500.0,0.00015818,2]
[403674287,1769464381474,300.0,0.00015818,2]
[403674288,1769464393456,286.2885,0.00015727,2]
[403674289,1769464414009,217.29392139,0.00015723,2]
[403674290,1769464441670,300.0,0.00015818,2]
[403674291,1769464442938,300.0,0.00015818,2]
[403674292,1769464449218,285.919462,0.00015816,2]
[403674293,1769464501117,300.0,0.00015818,2]
[403674294,1769464501148,1200.0,0.00015818,2]
[403674302,1769464525775,-535.62660127,0.00015819,2]
[403674303,1769464536239,-197.67,0.00015819,2]
[403674304,1769464561999,300.0,0.00015818,2]
[403674306,1769464603627,546.55717676,0.00015818,2]
[403674307,1769464610380,152.81134785,0.00015728,2]
[403674309,1769464621501,133.00647322,0.00015818,2]
[403674310,1769464621526,166.99352678,0.00015818,2]
[403674311,1769464631002,151.0,0.00015819,2]
[403674312,1769464631594,151.0,0.00015819,2]
[403674313,1769464632717,151.0,0.00015819,2]
[403674314,1769464633850,151.0,0.00015819,2]
[403674315,1769464634507,151.0,0.00015819,2]
[403674316,1769464635109,151.0,0.00015819,2]
[403674317,1769464635727,151.0,0.00015819,2]
[403674318,1769464636349,151.0,0.00015819,2]
[403674319,1769464636977,151.0,0.00015819,2]
[403674320,1769464638464,151.0,0.00015819,2]
[403674321,1769464638579,151.0,0.00015819,2]
[403674322,1769464639033,151.0,0.00015819,2]
[403674323,1769464649589,500.0,0.00015819,2]
[403674324,1769464650121,500.0,0.00015819,2]
[403674325,1769464650726,500.0,0.00015819,2]
[403674326,1769464650793,500.0,0.00015819,2]
[403674327,1769464651338,500.0,0.00015819,2]
[403674328,1769464651394,500.0,0.00015819,2]
[403674329,1769464651979,500.0,0.00015819,2]
[403674330,1769464652035,500.0,0.00015819,2]
[403674331,1769464652596,500.0,0.00015819,2]
[403674332,1769464652650,500.0,0.00015819,2]
[403674333,1769464653375,399.38656468,0.00015819,2]
[403674334,1769464653419,500.0,0.00015819,2]
[403674335,1769464653830,500.0,0.00015819,2]
[403674336,1769464654408,500.0,0.00015819,2]
[403674337,1769464655009,500.0,0.00015819,2]
[403674338,1769464655622,473.6107,0.00015819,2]
[403674339,1769464660267,148.01920854,0.00015819,2]
[403674340,1769464701235,584.93232258,0.00015728,2]
[403674341,1769464755754,2481.3402,0.00015719,2]
[403674343,1769464811255,6933.73747742,0.00015728,2]
[403674344,1769464811280,3884.27840363,0.00015728,2]
[403674345,1769464848099,166.66,0.00015275,2]
[403674346,1769464848371,166.66,0.00015596,2]
[403674347,1769464898171,1788.379,0.00015502,2]
[403674348,1769464898204,168.105,0.00015502,2]
[403674349,1769464926760,214.50838485,0.00015718,2]
[403674350,1769464932636,214.50838484,0.00015728,2]
[403674367,1769465088508,526.43909034,0.00015728,2]
[403674369,1769465175607,389.186011,0.00015728,2]
[403674370,1769465244203,440.60010445,0.00015728,2]
[403674371,1769465303857,2040.68562089,0.00015718,2]
[403674372,1769465303887,10000.01,0.00015718,2]
[403674373,1769465303916,10000.01,0.00015718,2]
[403674374,1769465303945,10000.01,0.00015718,2]
[403674375,1769465303978,10000.01,0.00015718,2]
[403674376,1769465304007,10000.01,0.00015718,2]
[403674377,1769465304035,10000.01,0.00015718,2]
[403674378,1769465304063,10000.01,0.00015718,2]
[403674379,1769465304091,10000.01,0.00015718,2]
[403674380,1769465304119,10000.01,0.00015718,2]
[403674381,1769465304942,-416.96558509,0.00015718,2]
[403674382,1769465307558,-323.15251754,0.00015718,2]
[403674383,1769465309276,-211.16229621,0.00015718,2]
[403674384,1769465310974,-159.27633665,0.00015718,2]
[403674385,1769465313805,-167.44743681,0.00015717,2]
[403674386,1769465314473,-205.00537103,0.00015717,2]
[403674387,1769465314504,-500.0,0.00015717,2]
[403674388,1769465314534,-270.9232008,0.00015717,2]
[403674389,1769465314564,-578.65531517,0.00015717,2]
[403674390,1769465315766,-161.55604627,0.00015718,2]
[403674391,1769465317655,-230.16055486,0.00015718,2]
[403674392,1769465317790,-5005.44535754,0.00015718,2]
[403674393,1769465317805,-10000.01,0.00015718,2]
[403674394,1769465317819,-10000.01,0.00015718,2]
[403674395,1769465317852,-10000.01,0.00015718,2]
[403674396,1769465317873,-10000.01,0.00015718,2]
[403674397,1769465317894,-10000.01,0.00015718,2]
[403674398,1769465317911,-10000.01,0.00015718,2]
[403674399,1769465319234,-204.35792503,0.00015718,2]
[403674400,1769465320854,-297.23533721,0.00015718,2]
[403674401,1769465322429,-258.68636491,0.00015718,2]
[403674402,1769465323546,9736.2142929,0.00015707,2]
[403674403,1769465324758,-467.13139279,0.00015718,2]
[403674404,1769465326337,-152.90282489,0.00015718,2]
[403674405,1769465328492,-266.94809082,0.00015718,2]
[403674406,1769465330481,-260.85016,0.00015718,2]
[403674407,1769465333469,-242.71801423,0.00015718,2]
[403674408,1769465335428,-233.42388047,0.00015718,2]
[403674409,1769465337273,-250.56590749,0.00015718,2]
[403674410,1769465339388,-155.11573673,0.00015718,2]
[403674411,1769465341503,-206.68971342,0.00015718,2]
[403674412,1769465343112,-174.71617962,0.00015718,2]
[403674413,1769465345261,-257.28198577,0.00015718,2]
[403674414,1769465346740,-210.7921822,0.00015718,2]
[403674415,1769465350594,-161.83096501,0.00015718,2]
[403674416,1769465352161,-201.62648842,0.00015718,2]
[403674417,1769465355907,-175.19283792,0.00015718,2]
[403674418,1769465357912,-260.4172349,0.00015718,2]
[403674462,1769465360954,-300.0,0.00015718,2]
[403674463,1769465362528,-168.05363435,0.00015718,2]
[403674464,1769465368779,-500.0,0.00015718,2]
[403674465,1769465370237,-314.95696843,0.00015718,2]
[403674466,1769465372936,-157.22337686,0.00015718,2]
[403674467,1769465374364,-277.90939824,0.00015718,2]
[403674468,1769465377209,-265.86743962,0.00015718,2]
[403674469,1769465379160,-176.03591018,0.00015718,2]
[403674470,1769465382626,-257.34707972,0.00015718,2]
[403674471,1769465384850,-267.66914738,0.00015718,2]
[403674472,1769465386774,-170.25575688,0.00015718,2]
[403674473,1769465390401,-500.0,0.00015718,2]
[403674474,1769465393454,-158.22222112,0.00015718,2]
[403674475,1769465396135,-199.64214331,0.00015718,2]
[403674476,1769465399205,-471.87987869,0.00015718,2]
[403674477,1769465401152,263.7957071,0.00015717,2]
[403674478,1769465401177,936.2042929,0.00015717,2]
[403674479,1769465401408,-251.22428166,0.00015718,2]
[403674480,1769465404547,-233.45275391,0.00015718,2]
[403674481,1769465415546,-250.0,0.00015718,2]
[403674482,1769465417574,-242.34040579,0.00015718,2]
[403674483,1769465418814,2004.45139611,0.00015717,2]
[403674484,1769465419102,-208.65959421,0.00015718,2]
[403674485,1769465427987,-241.40724641,0.00015718,2]
[403674486,1769465429693,-171.92393582,0.00015718,2]
[403674487,1769465431338,-208.97152924,0.00015718,2]
[403674497,1769465432007,-889.25305166,0.00015718,2]
[403674498,1769465432019,-361.04264806,0.00015718,2]
[403674499,1769465432031,-708.27235126,0.00015718,2]
[403674500,1769465432043,-2475.88062586,0.00015718,2]
[403674501,1769465432069,-22754.01791949,0.00015718,2]
[403674502,1769465432080,-5369.60929074,0.00015718,2]
[403674503,1769465432092,-266.38014877,0.00015718,2]
[403674504,1769465432128,-265.07682586,0.00015718,2]
[403674505,1769465432187,-325.00010413,0.00015718,2]
[403674506,1769465432200,-299.07108062,0.00015718,2]
[403674507,1769465432211,-878.47389663,0.00015718,2]
[403674508,1769465432251,-1929.27379233,0.00015718,2]
[403674510,1769465432262,-461.44401143,0.00015718,2]
[403674517,1769465433409,-291.02847076,0.00015718,2]
[403674518,1769465434963,-222.66848863,0.00015718,2]
[403674522,1769465438478,-4038.49465,0.00015718,2]
[403674523,1769465438495,-433.07166844,0.00015718,2]
[403674524,1769465438510,-59877.71392077,0.00015718,2]
[403674525,1769465438525,-650.0,0.00015718,2]
[403674526,1769465438536,-10387.72738952,0.00015718,2]
[403674527,1769465440170,-596.298,0.00015718,2]
[403674528,1769465440229,-717540.12142634,0.00015718,2]
[403674529,1769465440238,-250.0,0.00015763,2]
[403674530,1769465440248,-336.32096552,0.00015792,2]
[403674531,1769465440257,-12211.31540621,0.00015809,2]
[403674532,1769465440266,-151.0,0.00015809,2]
[403674533,1769465440275,-151.0,0.00015809,2]
[403674534,1769465440284,-151.0,0.00015809,2]
[403674535,1769465440294,-151.0,0.00015809,2]
[403674536,1769465440304,-151.0,0.00015809,2]
[403674537,1769465440314,-151.0,0.00015809,2]
[403674538,1769465440324,-151.0,0.00015809,2]
[403674539,1769465440334,-151.0,0.00015809,2]
[403674540,1769465440345,-151.0,0.00015809,2]
[403674541,1769465440354,-151.0,0.00015809,2]
[403674542,1769465440363,-151.0,0.00015809,2]
[403674543,1769465440372,-151.0,0.00015809,2]
[403674544,1769465440383,-297.30662569,0.00015809,2]
[403674545,1769465440393,-151.0,0.00015809,2]
[403674546,1769465440403,-151.0,0.00015809,2]
[403674547,1769465440412,-151.0,0.00015809,2]
[403674548,1769465440421,-151.0,0.00015809,2]
[403674549,1769465440431,-151.0,0.00015809,2]
[403674550,1769465440440,-151.0,0.00015809,2]
[403674551,1769465440449,-151.0,0.00015809,2]
[403674552,1769465440459,-151.0,0.00015809,2]
[403674553,1769465440475,-153.98079146,0.00015809,2]
[403674554,1769465440488,-500.0,0.00015818,2]
[403674555,1769465440498,-552.402478,0.00015818,2]
[403674556,1769465440507,-500.0,0.00015818,2]
[403674557,1769465440791,-500.0,0.00015818,2]
[403674558,1769465440827,-500.0,0.00015818,2]
[403674559,1769465440836,-500.0,0.00015818,2]
[403674560,1769465440845,-21642.46120114,0.00015818,2]
[403674561,1769465440854,-20984.4598,0.00015828,2]
[403674562,1769465440863,-1000.0,0.00015828,2]
[403674563,1769465440872,-1600.0,0.00015895,2]
[403674564,1769465440881,-305.78,0.00015908,2]
[403674565,1769465440890,-166.66,0.00015918,2]
[403674566,1769465440899,-500.0,0.00015927,2]
[403674567,1769465440908,-500.0,0.00015927,2]
[403674568,1769465440917,-500.0,0.00015927,2]
[403674569,1769465440926,-500.0,0.00015927,2]
[403674570,1769465440935,-500.0,0.00015927,2]
[403674571,1769465440948,-500.0,0.00015927,2]
[403674572,1769465440957,-500.0,0.00015927,2]
[403674573,1769465440967,-500.0,0.00015927,2]
[403674574,1769465440981,-500.0,0.00015927,2]
[403674575,1769465440991,-500.0,0.00015927,2]
[403674576,1769465441000,-500.0,0.00015927,2]
[403674577,1769465441010,-500.0,0.00015927,2]
[403674578,1769465441021,-500.0,0.00015927,2]
[403674579,1769465441031,-500.0,0.00015927,2]
[403674580,1769465441041,-500.0,0.00015927,2]
[403674581,1769465441050,-500.0,0.00015927,2]
[403674582,1769465441059,-500.0,0.00015927,2]
[403674583,1769465441068,-500.0,0.00015927,2]
[403674584,1769465441077,-500.0,0.00015927,2]
[403674585,1769465441087,-500.0,0.00015927,2]
[403674586,1769465441097,-500.0,0.00015927,2]
[403674587,1769465441106,-500.0,0.00015927,2]
[403674588,1769465441116,-500.0,0.00015927,2]
[403674589,1769465441127,-506.5749784,0.00015927,2]
[403674590,1769465441141,-500.0,0.00015927,2]
[403674591,1769465441155,-500.0,0.00015927,2]
[403674592,1769465441164,-500.0,0.00015927,2]
[403674593,1769465441174,-500.0,0.00015927,2]
[403674594,1769465441187,-500.0,0.00015927,2]
[403674595,1769465441198,-502.44260764,0.00015927,2]
[403674596,1769465441208,-500.0,0.00015927,2]
[403674597,1769465441217,-500.0,0.00015927,2]
[403674598,1769465441228,-500.0,0.00015927,2]
[403674599,1769465441238,-500.0,0.00015927,2]
[403674600,1769465441249,-500.0,0.00015927,2]
[403674601,1769465441259,-500.0,0.00015927,2]
[403674602,1769465441270,-500.0,0.00015927,2]
[403674603,1769465441280,-238.79765204,0.00015927,2]
[403674604,1769465441290,-500.0,0.00015927,2]
[403674605,1769465441299,-500.0,0.00015927,2]
[403674606,1769465441309,-500.0,0.00015927,2]
[403674607,1769465441321,-500.0,0.00015927,2]
[403674608,1769465441331,-1000.0,0.00015959,2]
[403674609,1769465441344,-3240.0,0.00015988,2]
[403674610,1769465441354,-340.37,0.00015995,2]
[403674611,1769465441364,-1500.0,0.00016151,2]
[403674612,1769465441374,-151.0,0.00016212,2]
[403674613,1769465441384,-151.0,0.00016218,2]
[403674614,1769465441396,-166.66,0.00016239,2]
[403674615,1769465441406,-198.49,0.000163,2]
[403674616,1769465441417,-198.49,0.000163,2]
[403674617,1769465441428,-548.23,0.000163,2]
[403674618,1769465441438,-677.0,0.00016343,2]
[403674619,1769465441447,-500.0,0.00016373,2]
[403674620,1769465441457,-9736.21429287,0.00016395,2]
[403674621,1769465441467,-392.76,0.000164,2]
[403674622,1769465441477,-500.0,0.00016438,2]
[403674623,1769465441489,-500.0,0.00016438,2]
[403674624,1769465441499,-500.0,0.00016438,2]
[403674625,1769465441509,-500.0,0.00016438,2]
[403674626,1769465441521,-500.0,0.00016438,2]
[403674627,1769465441535,-500.0,0.00016438,2]
[403674628,1769465441547,-500.0,0.00016438,2]
[403674629,1769465441556,-500.0,0.00016438,2]
[403674630,1769465441567,-500.0,0.00016438,2]
[403674631,1769465441576,-500.0,0.00016438,2]
[403674632,1769465441586,-500.0,0.00016438,2]
[403674633,1769465441595,-500.0,0.00016438,2]
[403674634,1769465441605,-500.0,0.00016438,2]
[403674635,1769465441616,-500.0,0.00016438,2]
[403674636,1769465441634,-500.0,0.00016438,2]
[403674637,1769465441644,-500.0,0.00016438,2]
[403674638,1769465441653,-500.0,0.00016438,2]
[403674639,1769465441662,-500.0,0.00016438,2]
[403674640,1769465441671,-500.0,0.00016438,2]
[403674641,1769465441681,-500.0,0.00016438,2]
[403674642,1769465441690,-500.0,0.00016438,2]
[403674643,1769465441699,-500.0,0.00016438,2]
[403674644,1769465441708,-500.0,0.00016438,2]
[403674645,1769465441718,-500.0,0.00016438,2]
[403674646,1769465441728,-500.0,0.00016438,2]
[403674647,1769465441738,-500.0,0.00016438,2]
[403674648,1769465441750,-500.0,0.00016438,2]
[403674649,1769465441759,-500.0,0.00016438,2]
[403674650,1769465441770,-500.0,0.00016438,2]
[403674651,1769465441779,-500.0,0.00016438,2]
[403674652,1769465441789,-500.0,0.00016438,2]
[403674653,1769465441799,-500.0,0.00016438,2]
[403674654,1769465441809,-500.0,0.00016438,2]
[403674655,1769465441818,-500.0,0.00016438,2]
[403674656,1769465441827,-500.0,0.00016438,2]
[403674657,1769465441837,-432.54058919,0.00016438,2]
[403674658,1769465441847,-500.0,0.00016438,2]
[403674659,1769465441858,-500.0,0.00016438,2]
[403674660,1769465441868,-500.0,0.00016438,2]
[403674661,1769465441877,-500.0,0.00016438,2]
[403674662,1769465441887,-500.0,0.00016438,2]
[403674663,1769465441898,-500.0,0.00016438,2]
[403674664,1769465441908,-500.0,0.00016438,2]
[403674665,1769465441918,-500.0,0.00016438,2]
[403674666,1769465441928,-500.0,0.00016438,2]
[403674667,1769465441939,-500.0,0.00016438,2]
[403674668,1769465441949,-500.0,0.00016438,2]
[403674669,1769465441959,-500.0,0.00016438,2]
[403674670,1769465441968,-500.0,0.00016438,2]
[403674671,1769465441978,-300.0,0.00016438,11]
[403674672,1769465441989,-225.53925697,0.00016438,2]
[403674673,1769465441999,-1311.0,0.0001649,2]
[403674674,1769465442010,-371.0,0.00016523,2]
[403674675,1769465442019,-339.37823744,0.00016533,2]
[403674676,1769465442030,-166.66,0.00016561,2]
[403674677,1769465442039,-2641.43,0.00016757,2]
[403674678,1769465442049,-305.78,0.00016791,2]
[403674679,1769465442058,-166.66,0.00016882,2]
[403674680,1769465442068,-500.0,0.00016921,2]
[403674681,1769465442078,-330.0,0.00016986,11]
[403674682,1769465442088,-250.0,0.00017,2]
[403674683,1769465442098,-200.0,0.00017068,2]
[403674684,1769465442116,-1000.0,0.00017072,2]
[403674685,1769465442131,-9736.21429287,0.00017083,2]
[403674686,1769465442141,-1000.0,0.00017244,2]
[403674687,1769465442152,-1680.0,0.00017276,2]
[403674688,1769465442164,-175.19283792,0.0001729,2]
[403674689,1769465442175,-250.0,0.0001729,2]
[403674690,1769465442185,-163.08,0.00017305,2]
[403674691,1769465442194,-195.0,0.00017388,2]
[403674692,1769465442204,-195.0,0.00017389,2]
[403674693,1769465442215,-159.33586698,0.00017474,2]
[403674694,1769465442226,-360.0,0.00017534,11]
[403674695,1769465442238,-2641.43,0.00017595,2]
[403674696,1769465442248,-305.78,0.00017675,2]
[403674697,1769465442259,-24446.97,0.00017728,2]
[403674698,1769465442269,-9999.99,0.00017728,2]
[403674699,1769465442280,-150.99,0.00017728,2]
[403674700,1769465442290,-9736.21429287,0.00017771,2]
[403674701,1769465442300,-500.0,0.00017836,2]
[403674702,1769465442310,-255.15668407,0.00017856,2]
[403674703,1769465442323,-450.12663539,0.00017856,2]
[403674704,1769465442333,-500.0,0.00017863,2]
[403674705,1769465442344,-1600.0,0.00017882,2]
[403674706,1769465442356,-614.86821475,0.00017947,2]
[403674707,1769465442366,-1000.0,0.00017953,2]
[403674708,1769465442377,-1951.2603029,0.0001799,2]
[403674709,1769465442387,-3615.9880381,0.0001799,2]
[403674710,1769465442398,-325.28313643,0.0001799,2]
[403674711,1769465442408,-216.0,0.00017993,2]
[403674712,1769465442417,-150.0,0.00017993,2]
[403674713,1769465442426,-408262.71759577,0.00018,2]
[403674714,1769465442451,-20900.0,0.00018,2]
[403674718,1769465443001,-731.990007,0.00018,2]
[403674719,1769465443012,-881.83,0.00018,2]
[403674720,1769465443032,-15611.21622551,0.00018,2]
[403674746,1769465443814,-1613.43335903,0.00015719,2]
[403674747,1769465443825,-647.87718311,0.00015719,2]
[403674748,1769465443843,-294.01433333,0.00015719,2]
[403674749,1769465443885,-3899.93522453,0.00015719,2]
[403674750,1769465443894,-3753.77488773,0.00018,2]
[403674751,1769465446167,-643.80513405,0.00018,2]
[403674752,1769465446392,-1404.26040629,0.00018,2]
[403674753,1769465446404,-154329.37247007,0.00018,2]
[403674754,1769465446415,-76461.2109299,0.00018,2]
[403674757,1769465460859,10000.01,0.00015716,2]
[403674758,1769465460886,10000.01,0.00015716,2]
[403674759,1769465460916,10000.01,0.00015716,2]
[403674760,1769465460943,10000.01,0.00015716,2]
[403674761,1769465460970,10000.01,0.00015716,2]
[403674762,1769465460998,10000.01,0.00015716,2]
[403674763,1769465461024,10000.01,0.00015716,2]
[403674764,1769465461050,10000.01,0.00015716,2]
[403674765,1769465461075,10000.01,0.00015716,2]
[403674766,1769465461101,10000.01,0.00015716,2]
[403674769,1769465498228,1430.703,0.00015402,2]
[403674770,1769465498259,168.105,0.00015402,2]
[403674771,1769465522836,300.0,0.00015715,2]
[403674772,1769465537931,210.0,9.989e-05,2]
[403674773,1769465539079,151.0,0.00015713,2]
[403674775,1769465592994,296.10547722,0.00015618,2]
[403674776,1769465637631,1221.1636,0.00015616,2]
[403674777,1769465641233,300.0,0.00015715,2]
[403674778,1769465650034,2500.0,0.00015616,2]
[403674781,1769465701254,300.0,0.00015715,2]
[403674782,1769465701450,1200.0,0.00015715,2]
[403674783,1769465703455,300.0,0.00015715,2]
[403674784,1769465705776,242.0,0.00015715,2]
[403674785,1769465718689,186.58226438,0.00015618,2]
[403674788,1769465727169,502.72610328,0.00015715,2]
[403674790,1769465761583,300.0,0.00015715,2]
[403674791,1769465773119,391.62455512,0.00015715,2]
[403674792,1769465773142,108.37544488,0.00015715,2]
[403674793,1769465779349,157.22337686,0.00015715,2]
[403674794,1769465785804,257.57681785,0.00015715,2]
[403674795,1769465787315,500.0,0.00015715,2]
[403674796,1769465787377,500.0,0.00015715,2]
[403674797,1769465787440,500.0,0.00015715,2]
[403674798,1769465787516,500.0,0.00015715,2]
[403674799,1769465787569,250.0,0.00015715,2]
[403674800,1769465799265,500.0,0.00015715,2]
[403674801,1769465799306,500.0,0.00015715,2]
[403674802,1769465818871,6226.83436041,0.00015618,2]
[403674803,1769465818895,546.08582114,0.00015618,2]
[403674804,1769465825250,1203.65,0.00019178,30]
[403674805,1769465826100,151.0,0.00015716,2]
[403674806,1769465826414,176.7226274,0.00015715,2]
[403674807,1769465826683,151.0,0.00015716,2]
[403674808,1769465827364,151.0,0.00015716,2]
[403674809,1769465827917,151.0,0.00015716,2]
[403674810,1769465828539,151.0,0.00015716,2]
[403674811,1769465829162,151.0,0.00015716,2]
[403674812,1769465829791,151.0,0.00015716,2]
[403674813,1769465830418,151.0,0.00015716,2]
[403674814,1769465830532,151.0,0.00015716,2]
[403674815,1769465831018,151.0,0.00015716,2]
[403674816,1769465831129,151.0,0.00015716,2]
[403674817,1769465832147,151.0,0.00015716,2]
[403674818,1769465832196,151.0,0.00015716,2]
[403674819,1769465832272,186.33234919,0.00015716,2]
[403674820,1769465832374,151.0,0.00015716,2]
[403674821,1769465832981,151.0,0.00015716,2]
[403674822,1769465833562,151.0,0.00015716,2]
[403674823,1769465834160,151.0,0.00015716,2]
[403674824,1769465834785,151.0,0.00015716,2]
[403674825,1769465835200,200.0,0.00015716,2]
[403674826,1769465835394,151.0,0.00015716,2]
[403674827,1769465835819,500.0,0.00016,30]
[403674828,1769465836090,151.0,0.00015716,2]
[403674829,1769465836934,151.0,0.00015716,2]
[403674830,1769465840260,186.58226438,0.00015619,2]
[403674831,1769465842110,700.0,0.00016,30]
[403674832,1769465843828,500.0,0.00015716,2]
[403674833,1769465844295,500.0,0.00015716,2]
[403674834,1769465844884,500.0,0.00015716,2]
[403674835,1769465845489,500.0,0.00015716,2]
[403674836,1769465846210,500.0,0.00015716,2]
[403674837,1769465846732,500.0,0.00015716,2]
[403674838,1769465847500,500.0,0.00015716,2]
[403674839,1769465848073,212.1033362,0.00015716,2]